lending/lending_fUSD_20250819
["ID","MTS","AMOUNT","RATE_DAILY","PERIOD"]
[380266822,1755630502545,-400.0,0.00023547,30]
[380266823,1755630502594,-3407.34,0.00023547,30]
[380266824,1755630502638,-400.0,0.00023547,30]
[380266825,1755630502690,-1455.26,0.00023547,30]
[380266826,1755630502739,-1790.8,0.00023547,30]
[380266827,1755630502791,-1524.7,0.00023547,30]
[380266828,1755630502847,-2909.2,0.00023547,30]
[380266829,1755630502894,-644.07,0.00023547,30]
[380266830,1755630502945,-4608.49,0.00023547,30]
[380266831,1755630503002,-1873.68,0.00023547,30]
[380266832,1755630503067,-400.0,0.00023547,30]
[380266833,1755630503121,-1158.18,0.00023547,30]
[380266834,1755630503178,-3932.3,0.00023547,30]
[380266835,1755630503236,-400.0,0.00023547,30]
[380266836,1755630503291,-400.0,0.00023547,30]
[380266837,1755630503349,-3025.09,0.00023547,30]
[380266838,1755630503406,-400.0,0.00023547,30]
[380266839,1755630503461,-2938.04,0.00023547,30]
[380266840,1755630503516,-1809.01,0.00023547,30]
[380266841,1755630503569,-3805.93,0.00023547,30]
[380266842,1755630503623,-400.0,0.00023547,30]
[380266843,1755630503677,-2010.96,0.00023547,30]
[380266844,1755630503730,-2130.28,0.00023547,30]
[380266845,1755630503782,-1929.81,0.00023547,30]
[380266846,1755630503832,-846.47,0.00023547,30]
[380266847,1755630503880,-4782.04,0.00023547,30]
[380266848,1755630503930,-1217.18,0.00023547,30]
[380266849,1755630503979,-490.99,0.00023547,30]
[380266850,1755630504028,-400.0,0.00023547,30]
[380266851,1755630504077,-400.0,0.00023547,30]
[380266852,1755630504128,-400.0,0.00023547,30]
[380266853,1755630504180,-4734.21,0.00023547,30]
[380266854,1755630504236,-928.72,0.00023547,30]
[380266855,1755630504290,-400.0,0.00023547,30]
[380266856,1755630504349,-400.0,0.00023547,30]
[380266857,1755630504402,-400.0,0.00023547,30]
[380266858,1755630504450,-1675.25,0.00023547,30]
[380266859,1755630504499,-491.87087848,0.00023547,30]
[380266860,1755630504549,-1922.59,0.00023547,30]
[380266861,1755630504598,-1996.2,0.00023547,30]
[380266862,1755630504642,-3257.29,0.00023547,30]
[380266863,1755630504687,-400.0,0.00023547,30]
[380266864,1755630504732,-400.0,0.00023547,30]
[380266865,1755630504780,-593.75,0.00023547,30]
[380266866,1755630504828,-400.0,0.00023547,30]
[380266867,1755630504877,-2073.59,0.00023547,30]
[380266868,1755630504930,-861.27,0.00023547,30]
[380266869,1755630504986,-1189.14,0.00023547,30]
[380266870,1755630505048,-400.0,0.00023547,30]
[380266871,1755630505115,-422.52,0.00023547,30]
[380266872,1755630505183,-400.0,0.00023547,30]
[380266873,1755630505252,-3952.06,0.00023547,30]
[380266874,1755630505312,-1492.14,0.00023547,30]
[380266875,1755630505373,-400.0,0.00023547,30]
[380266876,1755630505434,-1658.3,0.00023547,30]
[380266877,1755630505492,-400.0,0.00023547,30]
[380266878,1755630505544,-3001.12,0.00023547,30]
[380266879,1755630505599,-831.55,0.00023547,30]
[380266880,1755630505649,-400.0,0.00023547,30]
[380266881,1755630505697,-400.0,0.00023547,30]
[380266882,1755630505744,-1489.0,0.00023547,30]
[380266883,1755630505793,-1042.89,0.00023547,30]
[380266884,1755630505841,-519.17252015,0.00023547,30]
[380266885,1755630505897,-712.93,0.00023547,30]
[380266886,1755630505965,-3777.75,0.00023547,30]
[380266887,1755630506030,-801.03,0.00023547,30]
[380266888,1755630506091,-1627.46,0.00023547,30]
[380266889,1755630506146,-400.0,0.00023547,30]
[380266890,1755630506202,-1237.8,0.00023547,30]
[380266891,1755630506259,-400.0,0.00023547,30]
[380266892,1755630506314,-669.09,0.00023547,30]
[380266893,1755630506369,-6671.97,0.00023547,30]
[380266894,1755630506421,-400.0,0.00023547,30]
[380266895,1755630506466,-2229.74,0.00023547,30]
[380266896,1755630506514,-3149.01,0.00023547,30]
[380266897,1755630506559,-2374.67,0.00023547,30]
[380266898,1755630506601,-2223.29,0.00023547,30]
[380266899,1755630506645,-2157.52,0.00023547,30]
[380266900,1755630506687,-400.0,0.00023547,30]
[380266901,1755630506735,-400.0,0.00023547,30]
[380266902,1755630506784,-2318.08,0.00023547,30]
[380266903,1755630506835,-400.0,0.00023547,30]
[380266904,1755630506885,-400.0,0.00023547,30]
[380266905,1755630506937,-2788.58,0.00023547,30]
[380266906,1755630506989,-666.25,0.00023547,30]
[380266907,1755630507043,-739.46,0.00023547,30]
[380266908,1755630507099,-400.0,0.00023547,30]
[380266909,1755630507157,-400.0,0.00023547,30]
[380266910,1755630507213,-1590.45,0.00023547,30]
[380266911,1755630507270,-1065.74,0.00023547,30]
[380266912,1755630507329,-3699.35,0.00023547,30]
[380266913,1755630507386,-575.07,0.00023547,30]
[380266914,1755630507442,-400.0,0.00023547,30]
[380266915,1755630507496,-498.22,0.00023547,30]
[380266916,1755630507550,-400.0,0.00023547,30]
[380266917,1755630507605,-2562.93,0.00023547,30]
[380266918,1755630507656,-400.0,0.00023547,30]
[380266919,1755630507706,-400.0,0.00023547,30]
[380266920,1755630507755,-400.0,0.00023547,30]
[380266921,1755630507807,-3561.21,0.00023547,30]
[380266922,1755630507859,-233.91584666,0.00023547,30]
[380266923,1755630507913,-6511.48,0.00023547,30]
[380266924,1755630507965,-2210.73,0.00023547,30]
[380266925,1755630508020,-2425.08,0.00023547,30]
[380266926,1755630508076,-590.81,0.00023547,30]
[380266927,1755630508382,-1227.79,0.00023547,30]
[380266928,1755630508432,-752.39,0.00023547,30]
[380266929,1755630508480,-463.19,0.00023547,30]
[380266930,1755630508527,-428.98355733,0.00023547,30]
[380266931,1755630508573,-400.0,0.00023547,30]
[380266932,1755630508620,-8505.94,0.00023547,30]
[380266933,1755630508666,-400.0,0.00023547,30]
[380266934,1755630508711,-1561.3,0.00023547,30]
[380266935,1755630508754,-3372.85,0.00023547,30]
[380266936,1755630508796,-400.0,0.00023547,30]
[380266937,1755630508841,-1024.96,0.00023547,30]
[380266938,1755630508884,-1742.71,0.00023547,30]
[380266939,1755630508929,-400.0,0.00023547,30]
[380266940,1755630508972,-400.0,0.00023547,30]
[380266941,1755630509017,-400.0,0.00023547,30]
[380266942,1755630509067,-496.82,0.00023547,30]
[380266943,1755630509119,-400.0,0.00023547,30]
[380266944,1755630509170,-944.83,0.00023547,30]
[380266945,1755630509224,-400.0,0.00023547,30]
[380266946,1755630509277,-1256.14,0.00023547,30]
[380266947,1755630509329,-2403.42,0.00023547,30]
[380266948,1755630509382,-12558.9,0.00023547,30]
[380266949,1755630509433,-400.0,0.00023547,30]
[380266950,1755630509480,-3188.01,0.00023547,30]
[380266951,1755630509528,-1406.06,0.00023547,30]
[380266952,1755630509577,-1252.64,0.00023547,30]
[380266953,1755630509631,-1348.48,0.00023547,30]
[380266954,1755630509677,-400.0,0.00023547,30]
[380266955,1755630509724,-2108.64,0.00023547,30]
[380266956,1755630509771,-2011.64,0.00023547,30]
[380266957,1755630509817,-2694.66,0.00023547,30]
[380266958,1755630509863,-400.0,0.00023547,30]
[380266959,1755630509910,-1676.47,0.00023547,30]
[380266960,1755630509960,-400.0,0.00023547,30]
[380266961,1755630510010,-771.77,0.00023547,30]
[380266962,1755630510066,-1342.74,0.00023547,30]
[380266963,1755630510119,-400.0,0.00023547,30]
[380266964,1755630510170,-400.0,0.00023547,30]
[380266965,1755630510220,-2147.28,0.00023547,30]
[380266966,1755630510267,-400.0,0.00023547,30]
[380266967,1755630510317,-400.0,0.00023547,30]
[380266968,1755630510371,-400.0,0.00023547,30]
[380266969,1755630510427,-1004.69,0.00023547,30]
[380266970,1755630510482,-451.93,0.00023547,30]
[380266971,1755630510534,-400.0,0.00023547,30]
[380266972,1755630510586,-400.0,0.00023547,30]
[380266973,1755630510636,-759.13,0.00023547,30]
[380266974,1755630510684,-2289.31,0.00023547,30]
[380266975,1755630510732,-400.0,0.00023547,30]
[380266976,1755630510781,-1766.6,0.00023547,30]
[380266977,1755630510830,-2391.14,0.00023547,30]
[380266978,1755630510876,-764.46,0.00023547,30]
[380266979,1755630510922,-2045.43,0.00023547,30]
[380266980,1755630510971,-1321.22,0.00023547,30]
[380266981,1755630511023,-2644.5,0.00023547,30]
[380266982,1755630511080,-250.0,0.00023547,30]
[380266983,1755630511136,-400.0,0.00023547,30]
[380266984,1755630511189,-1028.93,0.00023547,30]
[380266985,1755630511242,-2587.83,0.00023547,30]
[380266986,1755630511295,-1829.49,0.00023547,30]
[380266987,1755630511351,-1425.98,0.00023547,30]
[380266988,1755630511404,-574.26,0.00023547,30]
[380266989,1755630511456,-400.0,0.00023547,30]
[380266990,1755630511506,-414.53,0.00023547,30]
[380266991,1755630511557,-1609.98,0.00023547,30]
[380266992,1755630511610,-400.0,0.00023547,30]
[380266993,1755630511658,-850.85,0.00023547,30]
[380266994,1755630511707,-9247.25,0.00023547,30]
[380266995,1755630511754,-1988.32,0.00023547,30]
[380266996,1755630511803,-828.08,0.00023547,30]
[380266997,1755630511855,-400.0,0.00023547,30]
[380266998,1755630511905,-400.0,0.00023547,30]
[380266999,1755630511956,-400.0,0.00023547,30]
[380267000,1755630512009,-402.0,0.00023547,30]
[380267001,1755630512065,-3327.81,0.00023547,30]
[380267002,1755630512120,-400.0,0.00023547,30]
[380267003,1755630512177,-2635.88,0.00023547,30]
[380267004,1755630512231,-2274.92,0.00023547,30]
[380267005,1755630512283,-3966.88,0.00023547,30]
[380267006,1755630512337,-1675.13,0.00023547,30]
[380267007,1755630512388,-400.0,0.00023547,30]
[380267008,1755630512439,-400.0,0.00023547,30]
[380267009,1755630512489,-9159.69,0.00023547,30]
[380267010,1755630512540,-400.0,0.00023547,30]
[380267011,1755630512589,-633.22,0.00023547,30]
[380267012,1755630512641,-400.0,0.00023547,30]
[380267013,1755630512689,-400.0,0.00023547,30]
[380267014,1755630512736,-4474.11,0.00023547,30]
[380267015,1755630512782,-400.0,0.00023547,30]
[380267016,1755630512835,-2597.2,0.00023547,30]
[380267017,1755630512881,-1312.13,0.00023547,30]
[380267018,1755630512928,-400.0,0.00023547,30]
[380267019,1755630512978,-1129.6,0.00023547,30]
[380267020,1755630513029,-1454.3,0.00023547,30]
[380267021,1755630513082,-469.29927396,0.00023547,30]
[380267022,1755630513136,-400.0,0.00023547,30]
[380267023,1755630513188,-892.58,0.00023547,30]
[380267024,1755630513240,-704.57,0.00023547,30]
[380267025,1755630513293,-1389.72,0.00023547,30]
[380267026,1755630513351,-1626.22,0.00023547,30]
[380267027,1755630513405,-178.0612961,0.00023547,30]
[380267028,1755630513459,-400.0,0.00023547,30]
[380267029,1755630513517,-400.0,0.00023547,30]
[380267030,1755630513574,-402.52,0.00023547,30]
[380267031,1755630513638,-758.46,0.00023547,30]
[380267032,1755630513697,-2232.67,0.00023547,30]
[380267033,1755630513755,-1948.15,0.00023547,30]
[380267034,1755630513816,-400.0,0.00023547,30]
[380267035,1755630513885,-646.97,0.00023547,30]
[380267036,1755630513945,-1767.01,0.00023547,30]
[380267037,1755630514010,-1591.73,0.00023547,30]
[380267038,1755630514073,-1951.89,0.00023547,30]
[380267039,1755630514136,-1978.37,0.00023547,30]
[380267040,1755630514200,-3882.91,0.00023547,30]
[380267041,1755630514267,-988.17,0.00023547,30]
[380267042,1755630514680,-1713.52,0.00023547,30]
[380267043,1755630514739,-760.8,0.00023547,30]
[380267044,1755630514797,-452.3,0.00023547,30]
[380267045,1755630514852,-1178.32,0.00023547,30]
[380267046,1755630514910,-1901.5,0.00023547,30]
[380267047,1755630514967,-400.0,0.00023547,30]
[380267048,1755630515023,-474.04,0.00023547,30]
[380267049,1755630515086,-1325.74,0.00023547,30]
[380267050,1755630515145,-400.0,0.00023547,30]
[380267051,1755630515205,-400.0,0.00023547,30]
[380267052,1755630515265,-2626.25,0.00023547,30]
[380267053,1755630515323,-400.0,0.00023547,30]
[380267054,1755630515382,-2345.23,0.00023547,30]
[380267055,1755630515437,-466.09,0.00023547,30]
[380267056,1755630515491,-400.0,0.00023547,30]
[380267057,1755630515542,-2766.96,0.00023547,30]
[380267058,1755630515591,-843.54,0.00023547,30]
[380267059,1755630515642,-2199.04,0.00023547,30]
[380267060,1755630515690,-400.0,0.00023547,30]
[380267061,1755630515737,-3426.21,0.00023547,30]
[380267062,1755630515786,-8015.84,0.00023547,30]
[380267063,1755630515833,-400.0,0.00023547,30]
[380267064,1755630515881,-2339.85,0.00023547,30]
[380267065,1755630515928,-1431.42,0.00023547,30]
[380267066,1755630515978,-1879.73,0.00023547,30]
[380267067,1755630516032,-400.0,0.00023547,30]
[380267068,1755630516087,-2605.4,0.00023547,30]
[380267069,1755630516147,-400.0,0.00023547,30]
[380267070,1755630516201,-2170.2,0.00023547,30]
[380267071,1755630516256,-3015.33,0.00023547,30]
[380267072,1755630516308,-2965.05,0.00023547,30]
[380267073,1755630516362,-1256.66,0.00023547,30]
[380267074,1755630516414,-400.0,0.00023547,30]
[380267075,1755630516466,-400.0,0.00023547,30]
[380267076,1755630516513,-1003.58,0.00023547,30]
[380267077,1755630516558,-667.84,0.00023547,30]
[380267078,1755630516604,-1775.32,0.00023547,30]
[380267079,1755630516649,-781.97,0.00023547,30]
[380267080,1755630516693,-2499.51,0.00023547,30]
[380267081,1755630516738,-1721.04,0.00023547,30]
[380267082,1755630516784,-400.0,0.00023547,30]
[380267083,1755630516831,-2164.63,0.00023547,30]
[380267084,1755630516877,-657.01,0.00023547,30]
[380267085,1755630516923,-400.0,0.00023547,30]
[380267086,1755630516969,-1626.0,0.00023547,30]
[380267087,1755630517016,-915.71,0.00023547,30]
[380267088,1755630517069,-400.0,0.00023547,30]
[380267089,1755630517116,-400.0,0.00023547,30]
[380267090,1755630517165,-400.0,0.00023547,30]
[380267091,1755630517213,-400.0,0.00023547,30]
[380267092,1755630517264,-834.1,0.00023547,30]
[380267093,1755630517316,-762.72,0.00023547,30]
[380267094,1755630517370,-400.0,0.00023547,30]
[380267095,1755630517420,-400.0,0.00023547,30]
[380267096,1755630517466,-812.96,0.00023547,30]
[380267097,1755630517510,-1795.88,0.00023547,30]
[380267098,1755630517553,-812.84,0.00023547,30]
[380267099,1755630517602,-1939.3,0.00023547,30]
[380267100,1755630517647,-400.0,0.00023547,30]
[380267101,1755630517691,-2089.8,0.00023547,30]
[380267102,1755630517735,-2037.62,0.00023547,30]
[380267103,1755630517777,-400.0,0.00023547,30]
[380267104,1755630517820,-400.0,0.00023547,30]
[380267105,1755630517865,-10633.1,0.00023547,30]
[380267106,1755630517909,-400.0,0.00023547,30]
[380267107,1755630517955,-400.0,0.00023547,30]
[380267108,1755630518000,-5984.63,0.00023547,30]
[380267109,1755630518049,-912.15,0.00023547,30]
[380267110,1755630518099,-1867.16,0.00023547,30]
[380267111,1755630518147,-1640.45,0.00023547,30]
[380267112,1755630518194,-927.26,0.00023547,30]
[380267113,1755630518241,-400.0,0.00023547,30]
[380267114,1755630518288,-1264.15,0.00023547,30]
[380267115,1755630518343,-822.45,0.00023547,30]
[380267116,1755630518388,-1632.29,0.00023547,30]
[380267117,1755630518432,-1147.83,0.00023547,30]
[380267118,1755630518477,-3121.15,0.00023547,30]
[380267119,1755630518523,-2642.11,0.00023547,30]
[380267120,1755630518568,-400.0,0.00023547,30]
[380267121,1755630518613,-400.0,0.00023547,30]
[380267122,1755630518658,-437.64,0.00023547,30]
[380267123,1755630518702,-400.0,0.00023547,30]
[380267124,1755630518746,-854.72,0.00023547,30]
[380267125,1755630518790,-400.0,0.00023547,30]
[380267126,1755630518838,-2401.94,0.00023547,30]
[380267127,1755630518884,-2923.07,0.00023547,30]
[380267128,1755630518931,-400.0,0.00023547,30]
[380267129,1755630518979,-531.2,0.00023547,30]
[380267130,1755630519026,-400.0,0.00023547,30]
[380267131,1755630519079,-984.29,0.00023547,30]
[380267132,1755630519134,-888.25,0.00023547,30]
[380267133,1755630519188,-514.78638768,0.00023547,30]
[380267134,1755630519240,-842.32,0.00023547,30]
[380267135,1755630519291,-673.56,0.00023547,30]
[380267136,1755630519341,-417.2,0.00023547,30]
[380267137,1755630519393,-1920.95,0.00023547,30]
[380267138,1755630519444,-400.0,0.00023547,30]
[380267139,1755630519492,-400.0,0.00023547,30]
[380267140,1755630519536,-400.0,0.00023547,30]
[380267141,1755630519582,-1522.14,0.00023547,30]
[380267142,1755630519637,-1843.66,0.00023547,30]
[380267143,1755630519686,-589.48,0.00023547,30]
[380267144,1755630519736,-1357.11,0.00023547,30]
[380267145,1755630519783,-4943.09,0.00023547,30]
[380267146,1755630519829,-1090.36,0.00023547,30]
[380267147,1755630519877,-2132.45,0.00023547,30]
[380267148,1755630519926,-1620.06,0.00023547,30]
[380267149,1755630519977,-400.0,0.00023547,30]
[380267150,1755630520033,-1043.12,0.00023547,30]
[380267151,1755630520087,-400.0,0.00023547,30]
[380267152,1755630520146,-2036.5,0.00023547,30]
[380267153,1755630520203,-2160.01,0.00023547,30]
[380267154,1755630520259,-400.0,0.00023547,30]
[380267155,1755630520320,-733.36,0.00023547,30]
[380267156,1755630520384,-400.0,0.00023547,30]
[380267157,1755630520785,-6197.97,0.00023547,30]
[380267158,1755630520839,-400.0,0.00023547,30]
[380267159,1755630520887,-1567.0,0.00023547,30]
[380267160,1755630520934,-2269.73,0.00023547,30]
[380267161,1755630520978,-1859.59,0.00023547,30]
[380267162,1755630521024,-400.0,0.00023547,30]
[380267163,1755630521071,-7066.74,0.00023547,30]
[380267164,1755630521120,-400.0,0.00023547,30]
[380267165,1755630521166,-2339.92,0.00023547,30]
[380267166,1755630521213,-400.0,0.00023547,30]
[380267167,1755630521259,-400.0,0.00023547,30]
[380267168,1755630521306,-400.0,0.00023547,30]
[380267169,1755630521356,-661.18,0.00023821,30]
[380267170,1755630521402,-897.36,0.00023821,30]
[380267171,1755630521448,-400.0,0.00023821,30]
[380267172,1755630521493,-1779.17,0.00023821,30]
[380267173,1755630521537,-400.0,0.00023821,30]
[380267174,1755630521583,-868.82,0.00023821,30]
[380267175,1755630521632,-400.0,0.00023821,30]
[380267176,1755630521689,-931.81,0.00023821,30]
[380267177,1755630521747,-400.0,0.00023821,30]
[380267178,1755630521807,-400.0,0.00023821,30]
[380267179,1755630521853,-1278.53,0.00023821,30]
[380267180,1755630521898,-400.0,0.00023821,30]
[380267181,1755630521947,-922.03,0.00023821,30]
[380267182,1755630521993,-1998.66,0.00023821,30]
[380267183,1755630522048,-523.74,0.00023821,30]
[380267184,1755630522104,-1077.73,0.00023821,30]
[380267185,1755630522161,-400.0,0.00023821,30]
[380267186,1755630522216,-1083.11,0.00023821,30]
[380267187,1755630522272,-424.48,0.00023821,30]
[380267188,1755630522330,-1726.78,0.00023821,30]
[380267189,1755630522382,-400.0,0.00023821,30]
[380267190,1755630522433,-573.46,0.00023821,30]
[380267191,1755630522478,-405.71,0.00023821,30]
[380267192,1755630522522,-400.0,0.00023821,30]
[380267193,1755630522565,-1010.67,0.00023821,30]
[380267194,1755630522611,-1099.82,0.00023821,30]
[380267195,1755630522656,-1556.93,0.00023821,30]
[380267196,1755630522704,-400.0,0.00023821,30]
[380267197,1755630522747,-400.0,0.00023821,30]
[380267198,1755630522792,-434.09,0.00023821,30]
[380267199,1755630522835,-1791.08,0.00023821,30]
[380267200,1755630522878,-1178.09,0.00023821,30]
[380267201,1755630522925,-400.0,0.00023821,30]
[380267202,1755630522970,-1835.72,0.00023821,30]
[380267203,1755630523017,-1032.27,0.00023821,30]
[380267204,1755630523069,-405.59,0.00023821,30]
[380267205,1755630523122,-657.7,0.00023821,30]
[380267206,1755630523175,-2773.84,0.00023821,30]
[380267207,1755630523230,-1415.69,0.00023821,30]
[380267208,1755630523285,-2616.85,0.00023821,30]
[380267209,1755630523341,-569.65,0.00023821,30]
[380267210,1755630523389,-461.18,0.00023821,30]
[380267211,1755630523435,-407.36,0.00023821,30]
[380267212,1755630523478,-438.1,0.00023821,30]
[380267213,1755630523522,-400.0,0.00023821,30]
[380267214,1755630523567,-609.41,0.00023821,30]
[380267215,1755630523611,-523.45,0.00023821,30]
[380267216,1755630523656,-1883.4,0.00023821,30]
[380267217,1755630523702,-2291.88,0.00023821,30]
[380267218,1755630523745,-1113.47,0.00023821,30]
[380267219,1755630523787,-2659.67,0.00023821,30]
[380267220,1755630523829,-1609.3,0.00023821,30]
[380267221,1755630523873,-1973.84,0.00023821,30]
[380267222,1755630523920,-400.0,0.00023821,30]
[380267223,1755630523967,-2474.93,0.00023821,30]
[380267224,1755630524013,-400.0,0.00023821,30]
[380267225,1755630524061,-580.89,0.00023821,30]
[380267226,1755630524114,-503.96,0.00023821,30]
[380267227,1755630524167,-1390.04,0.00023821,30]
[380267228,1755630524217,-1375.63,0.00023821,30]
[380267229,1755630524264,-2391.62,0.00023821,30]
[380267230,1755630524315,-829.42,0.00023821,30]
[380267231,1755630524367,-400.0,0.00023821,30]
[380267232,1755630524420,-2483.35,0.00023821,30]
[380267233,1755630524473,-400.0,0.00023821,30]
[380267234,1755630524522,-2313.87,0.00023821,30]
[380267235,1755630524568,-567.71,0.00023821,30]
[380267236,1755630524614,-976.66,0.00023821,30]
[380267237,1755630524660,-402.22,0.00023821,30]
[380267238,1755630524706,-444.55,0.00023821,30]
[380267239,1755630524754,-400.0,0.00023821,30]
[380267240,1755630524800,-2523.31,0.00023821,30]
[380267241,1755630524845,-3390.74,0.00023821,30]
[380267242,1755630524891,-402.82891063,0.00023821,30]
[380267243,1755630524941,-400.0,0.00023821,30]
[380267244,1755630524993,-1613.2,0.00023821,30]
[380267245,1755630525048,-655.88,0.00023821,30]
[380267246,1755630525103,-1683.94,0.00023821,30]
[380267247,1755630525157,-2173.68,0.00023821,30]
[380267248,1755630525209,-2265.47,0.00023821,30]
[380267249,1755630525258,-400.0,0.00023821,30]
[380267250,1755630525309,-2568.38,0.00023821,30]
[380267251,1755630525364,-400.0,0.00023821,30]
[380267252,1755630525414,-646.96,0.00023821,30]
[380267253,1755630525462,-1093.07,0.00023821,30]
[380267254,1755630525507,-1066.76,0.00023821,30]
[380267255,1755630525552,-1739.56,0.00023821,30]
[380267256,1755630525602,-2666.99,0.00023821,30]
[380267257,1755630525646,-1769.99,0.00023821,30]
[380267258,1755630525694,-400.0,0.00023821,30]
[380267259,1755630525739,-750.6,0.00023821,30]
[380267260,1755630525782,-400.0,0.00023821,30]
[380267261,1755630525836,-400.0,0.00023821,30]
[380267262,1755630525883,-983.97,0.00023821,30]
[380267263,1755630525931,-1163.48,0.00023821,30]
[380267264,1755630525983,-1275.26,0.00023821,30]
[380267265,1755630526029,-1304.3,0.00023821,30]
[380267266,1755630526078,-1417.75,0.00023821,30]
[380267267,1755630526124,-1826.41,0.00023821,30]
[380267268,1755630526176,-1984.55,0.00023821,30]
[380267269,1755630526232,-475.91,0.00023821,30]
[380267270,1755630526288,-2197.7,0.00023821,30]
[380267271,1755630526342,-441.25,0.00023821,30]
[380267272,1755630526690,-400.0,0.00023821,30]
[380267273,1755630526744,-2376.92,0.00023821,30]
[380267274,1755630526795,-400.0,0.00023821,30]
[380267275,1755630526847,-1698.15,0.00023821,30]
[380267276,1755630526910,-1243.9,0.00023821,30]
[380267277,1755630526977,-2729.11,0.00023821,30]
[380267278,1755630527044,-400.0,0.00023821,30]
[380267279,1755630527103,-400.0,0.00023821,30]
[380267280,1755630527157,-400.0,0.00023821,30]
[380267281,1755630527228,-400.0,0.00023821,30]
[380267282,1755630527297,-514.92,0.00023821,30]
[380267283,1755630527354,-2659.25,0.00023821,30]
[380267284,1755630527409,-2276.56,0.00023821,30]
[380267285,1755630527462,-474.19,0.00023821,30]
[380267286,1755630527511,-2376.31,0.00023821,30]
[380267287,1755630527557,-400.0,0.00023821,30]
[380267288,1755630527605,-1207.05,0.00023821,30]
[380267289,1755630527649,-400.0,0.00023821,30]
[380267290,1755630527693,-400.0,0.00023821,30]
[380267291,1755630527735,-400.0,0.00023821,30]
[380267292,1755630527778,-633.48,0.00023821,30]
[380267293,1755630527820,-680.06,0.00023821,30]
[380267294,1755630527864,-400.0,0.00023821,30]
[380267295,1755630527906,-523.52,0.00023821,30]
[380267296,1755630527955,-514.84,0.00023821,30]
[380267297,1755630528000,-2485.42,0.00023821,30]
[380267298,1755630528052,-400.0,0.00023821,30]
[380267299,1755630528112,-2070.68,0.00023821,30]
[380267300,1755630528164,-2109.71,0.00023821,30]
[380267301,1755630528216,-765.55,0.00023821,30]
[380267302,1755630528271,-400.0,0.00023821,30]
[380267303,1755630528330,-400.0,0.00023821,30]
[380267304,1755630528382,-2380.79,0.00023821,30]
[380267305,1755630528435,-400.0,0.00023821,30]
[380267306,1755630528489,-609.66,0.00023821,30]
[380267307,1755630528543,-400.0,0.00023821,30]
[380267308,1755630528594,-2214.91,0.00023821,30]
[380267309,1755630528644,-400.0,0.00023821,30]
[380267310,1755630528695,-1455.64,0.00023821,30]
[380267311,1755630528742,-812.07,0.00023821,30]
[380267312,1755630528788,-2318.11,0.00023821,30]
[380267313,1755630528837,-624.94,0.00023821,30]
[380267314,1755630528883,-735.73,0.00023821,30]
[380267315,1755630528931,-2543.44,0.00023821,30]
[380267316,1755630528976,-475.29,0.00023821,30]
[380267317,1755630529022,-400.0,0.00023821,30]
[380267318,1755630529069,-1267.25,0.00023821,30]
[380267319,1755630529121,-480.84,0.00023821,30]
[380267320,1755630529167,-1790.38,0.00023821,30]
[380267321,1755630529214,-1978.17,0.00023821,30]